bitfinex/quotes_BTCUSD_20230111
["timestamp","ask_amount","ask_price","bid_price","bid_amount"]
[1673402363963,0.006,17466.0,17465.0,0.11797318]
[1673402364296,0.98080443,17467.0,17465.0,0.00897318]
[1673402364471,0.98680443,17467.0,17465.0,0.11897318]
[1673402365237,0.43318707,17467.0,17465.0,0.11897318]
[1673402365485,0.42718707,17467.0,17465.0,0.65603343]
[1673402365731,0.42718707,17467.0,17465.0,0.76503343]
[1673402365983,0.42718707,17467.0,17465.0,0.65603343]
[1673402366243,0.42718707,17467.0,17465.0,0.76603343]
[1673402366509,0.43318707,17467.0,17465.0,1.33860043]
[1673402366790,0.17687483,17467.0,17465.0,1.33860043]
[1673402367075,0.43318707,17467.0,17465.0,1.33860043]
[1673402369294,0.42818707,17467.0,17465.0,1.33860043]
[1673402371063,0.09027487,17466.0,17465.0,1.23860043]
[1673402372331,0.09027487,17466.0,17465.0,0.55603343]
[1673402372596,0.09627487,17466.0,17465.0,0.66503343]
[1673402373403,0.09627487,17466.0,17465.0,0.109]
[1673402375862,0.09127487,17466.0,17465.0,0.109]
[1673402379251,0.26217163,17466.0,17465.0,0.109]
[1673402383519,0.51848387,17466.0,17465.0,0.109]
[1673402384870,0.26217163,17466.0,17465.0,0.109]
[1673402385121,0.51848387,17466.0,17465.0,0.109]
[1673402387469,1.83487117,17466.0,17465.0,0.109]
[1673402389906,1.83487117,17466.0,17465.0,0.009]
[1673402389907,2.00574877,17466.0,17465.0,0.009]
[1673402390401,1.83529181,17466.0,17465.0,0.009]
[1673402390639,2.26248165,17466.0,17465.0,0.009]
[1673402390888,1.83529181,17466.0,17465.0,0.009]
[1673402391361,2.31517036,17466.0,17465.0,0.009]
[1673402393367,1.97342071,17466.0,17465.0,0.009]
[1673402393885,2.31593282,17466.0,17465.0,0.009]
[1673402396752,2.00651123,17466.0,17465.0,0.009]
[1673402397182,1.83621463,17466.0,17465.0,0.009]
[1673402397431,2.00651123,17466.0,17465.0,0.009]
[1673402398651,1.8362386,17466.0,17465.0,0.009]
[1673402399184,2.26342844,17466.0,17465.0,0.009]
[1673402399426,1.8362386,17466.0,17465.0,0.009]
[1673402400463,2.31472116,17466.0,17465.0,0.009]
[1673402401774,2.31242016,17466.0,17465.0,0.009]
[1673402403859,2.2610712,17466.0,17465.0,0.009]
[1673402404099,1.83388136,17466.0,17465.0,0.009]
[1673402407410,1.83388136,17466.0,17465.0,0.00942309]
[1673402407624,1.83388136,17466.0,17465.0,0.581573]
[1673402408374,1.66260604,17466.0,17465.0,0.581573]
[1673402409427,1.83388136,17466.0,17465.0,0.581573]
[1673402410212,2.00511716,17466.0,17465.0,0.581573]
[1673402410969,1.83388136,17466.0,17465.0,0.581573]
[1673402411194,1.66260729,17466.0,17465.0,0.581573]
[1673402411477,1.83388136,17466.0,17465.0,0.581573]
[1673402416462,1.57702039,17466.0,17465.0,0.581573]
[1673402416721,2.00421023,17466.0,17465.0,0.581573]
[1673402417226,2.00421023,17466.0,17465.0,0.009]
[1673402417997,2.3221059,17466.0,17465.0,0.009]
[1673402418251,2.3221698,17466.0,17465.0,0.009]
[1673402419293,1.97965769,17466.0,17465.0,0.009]
[1673402419811,2.52966743,17466.0,17465.0,0.009]
[1673402421620,1.97965769,17466.0,17465.0,0.009]
[1673402423168,1.97965769,17466.0,17465.0,0.00893749]
[1673402423952,2.32207531,17466.0,17465.0,0.00893749]
[1673402424980,1.97965769,17466.0,17465.0,0.00893749]
[1673402425326,2.32206792,17466.0,17465.0,0.00893749]
[1673402425529,2.00410835,17466.0,17465.0,0.00893749]
[1673402426044,1.83372824,17466.0,17465.0,0.00893749]
[1673402426303,1.83372871,17466.0,17465.0,0.00893749]
[1673402427549,2.26091855,17466.0,17465.0,0.00893749]
[1673402428048,2.00410835,17466.0,17465.0,0.00893749]
[1673402428272,1.8337417,17466.0,17465.0,0.00893749]
[1673402429789,2.26093154,17466.0,17465.0,0.00893749]
[1673402430040,1.8337417,17466.0,17465.0,0.00893749]
[1673402430795,2.00410835,17466.0,17465.0,0.00893749]
[1673402431515,1.83375748,17466.0,17465.0,0.00893749]
[1673402433577,1.83375748,17466.0,17465.0,0.02775958]
[1673402435430,2.0050068,17466.0,17465.0,0.02775958]
[1673402435652,1.83375748,17466.0,17465.0,0.02775958]
[1673402441533,2.26094732,17466.0,17465.0,0.02775958]
[1673402441784,2.00410835,17466.0,17465.0,0.02775958]
[1673402442044,1.8337982,17466.0,17465.0,0.02775958]
[1673402449979,2.26098804,17466.0,17465.0,0.02775958]
[1673402450488,1.8337982,17466.0,17465.0,0.02775958]
[1673402453266,2.00410835,17466.0,17465.0,0.02775958]
[1673402454056,2.26091936,17466.0,17465.0,0.02775958]
[1673402455073,2.00410835,17466.0,17465.0,0.02775958]
[1673402456745,2.32221759,17466.0,17465.0,0.02775958]
[1673402457745,2.32221176,17466.0,17465.0,0.02775958]
[1673402460535,2.00410835,17466.0,17465.0,0.02775958]
[1673402461097,2.32150433,17466.0,17465.0,0.02775958]
[1673402461319,2.32150825,17466.0,17465.0,0.02775958]
[1673402463620,1.97909802,17466.0,17465.0,0.02775958]
[1673402463877,2.32161019,17466.0,17465.0,0.02775958]
[1673402464404,2.32160932,17466.0,17465.0,0.02775958]
[1673402465932,1.97909802,17466.0,17465.0,0.02775958]
[1673402467689,2.32160017,17466.0,17465.0,0.02775958]
[1673402468221,1.97909802,17466.0,17465.0,0.02775958]
[1673402468466,2.32160539,17466.0,17465.0,0.02775958]
[1673402473801,1.97909802,17466.0,17465.0,0.02775958]
[1673402474562,2.52910776,17466.0,17465.0,0.02775958]
[1673402475094,1.97909802,17466.0,17465.0,0.02775958]
[1673402475336,2.52910776,17466.0,17465.0,0.02775958]
[1673402475583,1.97909802,17466.0,17465.0,0.02775958]
[1673402479674,2.32148379,17466.0,17465.0,0.02775958]
[1673402479915,1.97909802,17466.0,17465.0,0.02775958]
[1673402480438,2.32149016,17466.0,17465.0,0.02775958]
[1673402481193,2.00409026,17466.0,17465.0,0.02775958]
[1673402481478,1.8336989,17466.0,17465.0,0.02775958]
[1673402483280,2.00409026,17466.0,17465.0,0.02775958]
[1673402484563,1.83371556,17466.0,17465.0,0.02775958]
[1673402486160,2.00409026,17466.0,17465.0,0.02775958]
[1673402486894,1.83369594,17466.0,17465.0,0.02775958]
[1673402487402,2.00486527,17466.0,17465.0,0.02775958]
[1673402487659,1.83369594,17466.0,17465.0,0.02775958]
[1673402489697,2.38370568,17466.0,17465.0,0.02775958]
[1673402489957,2.86872179,17466.0,17465.0,0.02775958]
[1673402490210,2.31871205,17466.0,17465.0,0.02775958]
[1673402490958,1.97631991,17466.0,17465.0,0.02775958]
[1673402491478,2.52632965,17466.0,17465.0,0.02775958]
[1673402492981,1.97631991,17466.0,17465.0,0.02775958]
[1673402494314,2.52632965,17466.0,17465.0,0.02775958]
[1673402495896,1.97631991,17466.0,17465.0,0.02775958]
[1673402496359,2.52632965,17466.0,17465.0,0.02775958]
[1673402496648,2.52632965,17466.0,17465.0,0.02766331]
[1673402500969,2.09913981,17466.0,17465.0,0.02766331]
[1673402501216,2.88587214,17466.0,17465.0,0.02766331]
[1673402501725,2.52699114,17466.0,17465.0,0.02766331]
[1673402502491,2.88587214,17466.0,17465.0,0.02766331]
[1673402503543,2.3358624,17466.0,17465.0,0.02766331]
[1673402503788,2.00464144,17466.0,17465.0,0.02766331]
[1673402504040,2.26135439,17466.0,17465.0,0.02766331]
[1673402504292,1.83350306,17466.0,17465.0,0.02766331]
[1673402504557,1.83350306,17466.0,17465.0,0.57256833]
[1673402505570,1.83350306,17466.0,17465.0,1.14514133]
[1673402506078,2.00464366,17466.0,17465.0,1.14514133]
[1673402506328,1.66236183,17466.0,17465.0,1.14514133]
[1673402506581,2.00464366,17466.0,17465.0,1.14514133]
[1673402506831,1.66236183,17466.0,17465.0,1.14514133]
[1673402507597,1.83345992,17466.0,17465.0,1.14514133]
[1673402508817,2.00458254,17466.0,17465.0,1.14514133]
[1673402509096,1.6622971,17466.0,17465.0,1.14514133]
[1673402509350,0.51680944,17466.0,17465.0,1.14514133]
[1673402515225,0.26009649,17466.0,17465.0,1.14514133]
[1673402515718,0.51680944,17466.0,17465.0,1.14514133]
[1673402516130,0.26009649,17466.0,17465.0,1.14514133]
[1673402516395,0.51680944,17466.0,17465.0,1.14514133]
[1673402517651,0.26009649,17466.0,17465.0,1.14514133]
[1673402517903,0.51680944,17466.0,17465.0,1.14514133]
[1673402518159,0.17712262,17466.0,17465.0,1.14514133]
[1673402520428,0.43383557,17466.0,17465.0,1.14514133]
[1673402520960,0.43383557,17466.0,17465.0,0.02766331]
[1673402521206,0.51485416,17466.0,17465.0,0.02766331]
[1673402524006,0.5148279,17466.0,17465.0,0.02766331]
[1673402524489,1.66033764,17466.0,17465.0,0.02766331]
[1673402524736,1.66033809,17466.0,17465.0,0.02766331]
[1673402524995,2.00261868,17466.0,17465.0,0.02766331]
[1673402525245,1.66033685,17466.0,17465.0,0.02766331]
[1673402525490,1.83152232,17466.0,17465.0,0.02766331]
[1673402527190,1.66036812,17466.0,17465.0,0.02766331]
[1673402527477,0.51485917,17466.0,17465.0,0.02766331]
[1673402529419,0.25814622,17466.0,17465.0,0.02766331]
[1673402529677,0.51485917,17466.0,17465.0,0.02766331]
[1673402531734,0.25814622,17466.0,17465.0,0.02766331]
[1673402532250,0.51485917,17466.0,17465.0,0.02766331]
[1673402534877,0.51485917,17466.0,17465.0,0.72679594]
[1673402535358,0.25814622,17466.0,17465.0,0.72679594]
[1673402536139,0.25814622,17466.0,17465.0,1.08567694]
[1673402537163,0.25814622,17466.0,17465.0,0.72679594]
[1673402538487,0.51485917,17466.0,17465.0,0.72679594]
[1673402541705,0.43384058,17466.0,17465.0,0.72679594]
[1673402542457,0.43384058,17466.0,17465.0,1.29936894]
[1673402545181,0.43384058,17466.0,17465.0,1.65824994]
[1673402545968,0.43384058,17466.0,17465.0,1.29936894]
[1673402547504,0.43384058,17466.0,17465.0,0.72679594]
[1673402548547,1.57931234,17466.0,17465.0,0.72679594]
[1673402548806,1.57931234,17466.0,17465.0,1.29936894]
[1673402549071,0.43384058,17466.0,17465.0,1.29936894]
[1673402553060,0.43384058,17466.0,17465.0,1.87194194]
[1673402553450,1.5793122,17466.0,17465.0,1.87194194]
[1673402555260,0.43384058,17466.0,17465.0,1.87194194]
[1673402555768,1.57931138,17466.0,17465.0,1.87194194]
[1673402559047,0.43384058,17466.0,17465.0,1.87194194]
[1673402559320,0.17712763,17466.0,17465.0,1.53169031]
[1673402559602,0.006,17466.0,17465.0,3.15798171]
[1673402559858,0.006,17466.0,17465.0,3.97838355]
[1673402559859,0.00588686,17466.0,17465.0,3.97838355]
[1673402560110,0.00588686,17466.0,17465.0,3.52127497]
[1673402560370,0.00588686,17466.0,17465.0,3.35026308]
[1673402560623,0.00588686,17466.0,17465.0,2.57180244]
[1673402562973,0.00588686,17466.0,17465.0,2.57225306]
[1673402568016,0.00588686,17466.0,17465.0,2.4000807]
[1673402569149,0.00588686,17466.0,17465.0,2.57180244]
[1673402569596,0.00588686,17466.0,17465.0,2.4000807]
[1673402572348,0.00588686,17466.0,17465.0,1.69369031]
[1673402572627,0.61651831,17466.0,17465.0,1.17280931]
[1673402572882,0.24432042,17466.0,17465.0,1.17280931]
[1673402573151,0.24432042,17466.0,17465.0,0.60023631]
[1673402574939,0.24432042,17466.0,17465.0,0.60068693]
[1673402575188,0.50103337,17466.0,17465.0,0.60023631]
[1673402575976,0.24432042,17466.0,17465.0,0.60023631]
[1673402576223,0.17701449,17466.0,17465.0,1.83169031]
[1673402576469,0.00588686,17466.0,17465.0,1.83169031]
[1673402580321,0.00588686,17466.0,17465.0,1.47280931]
[1673402580543,0.00588686,17466.0,17465.0,1.83169031]
[1673402583823,0.00588686,17466.0,17465.0,2.00341205]
[1673402584103,0.00588686,17466.0,17465.0,1.70341205]
[1673402584341,0.00588686,17466.0,17465.0,1.17280931]
[1673402585624,0.17701449,17466.0,17465.0,1.17280931]
[1673402587871,0.00588686,17466.0,17465.0,1.17280931]
[1673402590445,0.08721639,17466.0,17465.0,1.17280931]
[1673402590683,0.25834402,17466.0,17465.0,1.17280931]
[1673402592240,0.51505697,17466.0,17465.0,1.17280931]
[1673402592751,0.25834402,17466.0,17465.0,1.17280931]
[1673402594825,2.7008347,17466.0,17465.0,0.02759589]
[1673402595089,2.78290805,17466.0,17465.0,0.02759589]
[1673402597678,2.78272506,17466.0,17465.0,0.02759589]
[1673402597933,2.78272736,17466.0,17465.0,0.02759589]
[1673402598226,2.42384636,17466.0,17465.0,0.02759589]
[1673402598448,2.78272736,17466.0,17465.0,0.02759589]
[1673402598928,2.78272162,17466.0,17465.0,0.02759589]
[1673402599544,3.11587368,17466.0,17465.0,0.02759589]
[1673402599746,3.6641794,17466.0,17465.0,0.02759589]
[1673402600001,3.33102734,17466.0,17465.0,0.02759589]
[1673402601283,3.33102734,17466.0,17465.0,0.12759589]
[1673402604486,3.31581953,17466.0,17465.0,0.12759589]
[1673402604748,3.05917049,17466.0,17465.0,0.12759589]
[1673402605001,2.88799179,17466.0,17465.0,0.12759589]
[1673402605265,3.05917049,17466.0,17465.0,0.12759589]
[1673402607047,3.32888755,17466.0,17465.0,0.12759589]
[1673402607556,3.05917049,17466.0,17465.0,0.12759589]
[1673402607769,2.63131916,17466.0,17465.0,0.12759589]
[1673402608063,3.05917049,17466.0,17465.0,0.12759589]
[1673402608325,2.88797369,17466.0,17465.0,0.12759589]
[1673402608573,1.21243246,17466.0,17465.0,0.12759589]
[1673402609694,0.66412674,17466.0,17465.0,0.12759589]
[1673402611629,0.82762674,17466.0,17465.0,0.12759589]
[1673402612135,3.22295522,17466.0,17465.0,0.12759589]
[1673402612380,2.07740169,17466.0,17465.0,0.12759589]
[1673402612624,2.24854842,17466.0,17465.0,0.12759589]
[1673402613400,2.24854901,17466.0,17465.0,0.12759589]
[1673402614161,2.07742061,17466.0,17465.0,0.12759589]
[1673402615399,1.52883951,17466.0,17465.0,0.12759589]
[1673402615645,1.16995851,17466.0,17465.0,0.12759589]
[1673402615905,1.71859373,17466.0,17465.0,0.12759589]
[1673402616160,1.16995851,17466.0,17465.0,0.12759589]
[1673402617252,2.07747459,17466.0,17465.0,0.12759589]
[1673402617461,1.71859359,17466.0,17465.0,0.12759589]
[1673402617959,1.71864855,17466.0,17465.0,0.12759589]
[1673402618505,2.41981138,17466.0,17465.0,0.12759589]
[1673402618960,2.07752955,17466.0,17465.0,0.12759589]
[1673402619221,1.71864855,17466.0,17465.0,0.12759589]
[1673402619621,3.50646757,17466.0,17465.0,0.12759589]
[1673402619925,3.86534857,17466.0,17465.0,0.12759589]
[1673402620473,3.56534857,17466.0,17465.0,0.12759589]
[1673402621534,3.23834857,17466.0,17465.0,0.12759589]
[1673402623818,3.6661999,17466.0,17465.0,0.12759589]
[1673402624065,3.23834857,17466.0,17465.0,0.12759589]
[1673402624981,3.6661999,17466.0,17465.0,0.12759589]
[1673402625394,3.40954537,17466.0,17465.0,0.12759589]
[1673402626193,3.6809201,17466.0,17465.0,0.12759589]
[1673402627030,3.40954537,17466.0,17465.0,0.12759589]
[1673402627774,3.68096481,17466.0,17465.0,0.12759589]
[1673402628844,3.40954537,17466.0,17465.0,0.12759589]
[1673402629097,3.05066437,17466.0,17465.0,0.12759589]
[1673402629345,3.32215668,17466.0,17465.0,0.12759589]
[1673402630120,3.68103768,17466.0,17465.0,0.12759589]
[1673402630602,3.32215668,17466.0,17465.0,0.12759589]
[1673402631110,3.05066437,17466.0,17465.0,0.12759589]
[1673402631364,2.50197433,17466.0,17465.0,0.12759589]
[1673402631611,2.66547433,17466.0,17465.0,0.12759589]
[1673402631864,2.93697383,17466.0,17465.0,0.12759589]
[1673402632123,2.66547433,17466.0,17465.0,0.12759589]
[1673402632636,2.92253392,17466.0,17465.0,0.12759589]
[1673402632895,2.66547433,17466.0,17465.0,0.12759589]
[1673402633466,3.02435533,17466.0,17465.0,0.12759589]
[1673402633722,3.29590932,17466.0,17465.0,0.12759589]
[1673402634234,2.93702832,17466.0,17465.0,0.12759589]
[1673402635301,3.29590932,17466.0,17465.0,0.12759589]
[1673402636286,2.93702832,17466.0,17465.0,0.12759589]
[1673402636783,2.95362749,17466.0,17465.0,0.12759589]
[1673402637780,2.59474649,17466.0,17465.0,0.12759589]
[1673402638803,2.93754143,17466.0,17465.0,0.12759589]
[1673402639048,2.59474649,17466.0,17465.0,0.12759589]
[1673402639542,2.95362749,17466.0,17465.0,0.12759589]
[1673402639864,2.93755262,17466.0,17465.0,0.12759589]
[1673402640082,2.59474649,17466.0,17465.0,0.12759589]
[1673402640600,2.93755813,17466.0,17465.0,0.12759589]
[1673402641819,3.29643913,17466.0,17465.0,0.12759589]
[1673402642572,2.93755813,17466.0,17465.0,0.12759589]
[1673402643322,2.95362749,17466.0,17465.0,0.12759589]
[1673402643814,3.50209879,17466.0,17465.0,0.12759589]
[1673402645596,2.95362749,17466.0,17465.0,0.12759589]
[1673402645842,2.59474649,17466.0,17465.0,0.12759589]
[1673402646356,2.95362749,17466.0,17465.0,0.12759589]
[1673402646887,2.95362749,17466.0,17465.0,0.12753106]
[1673402647147,3.07435618,17466.0,17465.0,0.12753106]
[1673402648000,3.60380082,17466.0,17465.0,0.12753106]
[1673402648224,4.20615878,17466.0,17465.0,0.12753106]
[1673402648469,5.13820293,17466.0,17465.0,0.12753106]
[1673402648733,5.84849226,17466.0,17465.0,0.06329044]
[1673402648987,6.98996394,17466.0,17465.0,0.06329044]
[1673402649242,6.82057708,17466.0,17465.0,0.06329044]
[1673402649517,4.76318997,17466.0,17465.0,0.06629044]
[1673402649770,4.74318997,17466.0,17465.0,0.06329044]
[1673402650783,6.55581841,17466.0,17465.0,0.07029044]
[1673402651044,4.74318997,17466.0,17465.0,0.06329044]
[1673402651294,5.15818997,17466.0,17465.0,0.06929044]
[1673402651818,5.30071993,17466.0,17465.0,0.06929044]
[1673402652325,5.30921993,17466.0,17465.0,0.06929044]
[1673402652580,7.02789538,17466.0,17465.0,0.06929044]
[1673402652840,7.60507161,17466.0,17465.0,0.06929044]
[1673402653095,7.02789538,17466.0,17465.0,0.06929044]
[1673402653365,5.30921993,17466.0,17465.0,0.06929044]
[1673402653610,5.47191993,17466.0,17465.0,0.06929044]
[1673402654927,6.0658676,17466.0,17465.0,0.06929044]
[1673402657043,6.11728705,17466.0,17465.0,0.06929044]
[1673402657820,6.11728705,17466.0,17465.0,0.01643485]
[1673402658083,9.39350969,17466.0,17465.0,0.01643485]
[1673402658348,9.45150022,17466.0,17465.0,0.01643485]
[1673402659918,10.68017247,17466.0,17465.0,0.01643485]
[1673402660159,10.738163,17466.0,17465.0,0.01643485]
[1673402661213,10.39587176,17466.0,17465.0,0.01643485]
[1673402663012,8.67712535,17466.0,17465.0,0.01643485]
[1673402663839,7.89942863,17466.0,17465.0,0.01643485]
[1673402664362,7.21516585,17466.0,17465.0,0.01643485]
[1673402666430,6.23386585,17466.0,17465.0,0.01643485]
[1673402667195,7.95278484,17466.0,17465.0,0.00256203]
[1673402667742,8.5321759,17466.0,17465.0,0.00053942]
[1673402668262,9.16689703,17466.0,17465.0,0.00053942]
[1673402668519,8.59016643,17466.0,17465.0,0.00053942]
[1673402668768,9.16692643,17466.0,17465.0,0.00017068]
[1673402669311,9.57216643,17466.0,17465.0,0.00017068]
[1673402669576,9.88744052,17466.0,17465.0,0.00017068]
[1673402669832,9.57216643,17466.0,17465.0,0.00017068]
[1673402670366,9.45716643,17466.0,17461.0,0.01146153]
[1673402670628,0.3262,17462.0,17461.0,0.01146153]
[1673402670874,5.34791883,17462.0,17461.0,0.01146153]
[1673402671144,5.11874094,17462.0,17461.0,0.01146153]
[1673402672176,5.25274094,17462.0,17461.0,0.01146153]
[1673402673501,3.77439384,17462.0,17461.0,0.01146153]
[1673402673758,2.45808963,17462.0,17461.0,0.01146153]
[1673402674025,2.8850684,17462.0,17461.0,0.01146153]
[1673402674281,2.45808963,17462.0,17461.0,0.01146153]
[1673402675545,1.18103001,17462.0,17461.0,0.01146153]
[1673402675790,1.48103001,17462.0,17461.0,0.01146153]
[1673402676040,2.0234492,17462.0,17461.0,0.01146153]
[1673402676811,2.09924978,17462.0,17461.0,0.01146153]
[1673402677328,3.41596374,17462.0,17461.0,0.01146153]
[1673402677586,4.36107877,17462.0,17461.0,0.01146153]
[1673402678918,4.36096313,17462.0,17461.0,0.01146153]
[1673402679506,3.85818378,17462.0,17461.0,0.01146153]
[1673402680027,4.28538676,17462.0,17461.0,0.01146153]
[1673402680282,3.85818378,17462.0,17461.0,0.01146153]
[1673402681302,4.28537157,17462.0,17461.0,0.01146153]
[1673402682078,3.85818378,17462.0,17461.0,0.01146153]
[1673402682343,4.23448907,17462.0,17461.0,0.01146153]
[1673402682567,4.80716107,17462.0,17461.0,0.01146153]
[1673402684921,4.86925692,17462.0,17461.0,0.01146153]
[1673402685173,4.80716107,17462.0,17461.0,0.01146153]
[1673402686821,5.31967782,17462.0,17461.0,0.01146153]
[1673402688623,5.31967782,17462.0,17461.0,0.003604]
[1673402690784,4.94337253,17462.0,17461.0,0.003604]
[1673402691860,4.92699217,17462.0,17461.0,0.003604]
[1673402693660,5.44063492,17462.0,17461.0,0.003604]
[1673402694178,4.92699217,17462.0,17461.0,0.003604]
[1673402696253,5.09049217,17462.0,17461.0,0.003604]
[1673402696544,5.66988323,17462.0,17461.0,0.003604]
[1673402696787,7.9655225,17462.0,17461.0,0.003604]
[1673402697090,7.9655225,17462.0,17461.0,0.00076431]
[1673402697560,7.8315225,17462.0,17461.0,0.00076431]
[1673402698328,8.42547017,17462.0,17461.0,0.00076431]
[1673402699580,8.56147017,17462.0,17461.0,0.00076431]
[1673402705173,8.5632384,17462.0,17461.0,0.00016431]
[1673402705426,7.98488883,17462.0,17461.0,0.00016431]
[1673402705707,8.56319723,17462.0,17461.0,0.00016431]
[1673402707040,7.98488883,17462.0,17461.0,0.00016431]
[1673402707291,7.98488883,17462.0,17461.0,3.485e-05]
[1673402708092,8.56335412,17462.0,17461.0,3.485e-05]
[1673402708667,0.3711145,17461.0,17460.0,0.00282176]
[1673402709188,5.45729541,17461.0,17460.0,0.00282176]
[1673402709443,6.03668647,17461.0,17460.0,0.00282176]
[1673402709726,6.17268647,17461.0,17460.0,0.00282176]
[1673402710229,6.68689912,17461.0,17460.0,0.00282176]
[1673402710503,6.17274647,17461.0,17460.0,0.00282176]
[1673402710780,6.68686617,17461.0,17460.0,0.00282176]
[1673402711041,6.19072978,17461.0,17460.0,0.00282176]
[1673402711561,6.17205523,17461.0,17460.0,0.00282176]
[1673402711819,6.19070336,17461.0,17460.0,0.00282176]
[1673402712073,5.81958886,17461.0,17460.0,0.00282176]
[1673402712345,5.86920721,17461.0,17460.0,0.00282176]
[1673402712601,6.16920721,17461.0,17460.0,0.00282176]
[1673402712921,6.18786812,17461.0,17460.0,0.00282176]
[1673402713125,5.88786812,17461.0,17460.0,0.00282176]
[1673402715478,6.18786812,17461.0,17460.0,0.00282176]
[1673402715700,5.88786812,17461.0,17460.0,0.00282176]
[1673402716208,5.88780812,17461.0,17460.0,0.00282176]
[1673402716978,6.38280961,17461.0,17460.0,0.00282176]
[1673402717226,6.16870194,17461.0,17460.0,0.00282176]
[1673402717451,5.86411192,17461.0,17460.0,0.00282176]
[1673402718036,6.09584705,17461.0,17460.0,0.00282176]
[1673402718265,7.8828296,17461.0,17460.0,0.00282176]
[1673402718767,7.8149379,17461.0,17460.0,0.00282176]
[1673402719268,8.39340319,17461.0,17460.0,0.00282176]
[1673402720318,2.37085125,17460.0,17459.0,0.0090432]
[1673402720607,7.21418502,17460.0,17459.0,0.0090432]
[1673402720838,7.79358287,17460.0,17459.0,0.0090432]
[1673402721112,7.27917444,17460.0,17459.0,0.0090432]
[1673402721407,7.41417444,17460.0,17459.0,0.0090432]
[1673402721660,7.34050143,17460.0,17459.0,0.0090432]
[1673402722695,7.85485947,17460.0,17459.0,0.0090432]
[1673402722956,7.34758293,17460.0,17459.0,0.0090432]
[1673402723237,6.85208979,17460.0,17459.0,0.0090432]
[1673402723964,6.77997446,17460.0,17459.0,0.0090432]
[1673402724473,6.85267704,17460.0,17459.0,0.0090432]
[1673402725281,7.34723288,17460.0,17459.0,0.0090432]
[1673402725519,7.85354006,17460.0,17459.0,0.0090432]
[1673402725779,7.3392807,17460.0,17459.0,0.0090432]
[1673402726305,9.05845802,17460.0,17459.0,0.0090432]
[1673402727363,9.13106917,17460.0,17459.0,0.0090432]
[1673402727895,9.05845802,17460.0,17459.0,0.0090432]
[1673402728151,9.13276072,17460.0,17459.0,0.0090432]
[1673402728516,6.83413234,17460.0,17459.0,0.0090432]
[1673402728687,6.83413234,17460.0,17459.0,0.00294983]
[1673402728947,6.75982964,17460.0,17459.0,0.00294983]
[1673402729974,7.3360427,17460.0,17459.0,0.00294983]
[1673402730238,6.84177029,17460.0,17459.0,0.00294983]
[1673402730469,7.42116135,17460.0,17459.0,0.00294983]
[1673402731694,7.9143089,17460.0,17459.0,0.00294983]
[1673402731943,7.42116135,17460.0,17459.0,0.00294983]
[1673402732931,7.85209465,17460.0,17459.0,0.00294983]
[1673402733180,7.92436282,17460.0,17459.0,0.00294983]
[1673402733424,7.43139482,17460.0,17459.0,0.00294983]
[1673402733680,7.45699492,17460.0,17459.0,0.00294983]
[1673402733933,7.15699492,17460.0,17459.0,0.00294983]
[1673402734437,7.45699492,17460.0,17459.0,0.00294983]
[1673402734946,7.95027638,17460.0,17459.0,0.00294983]
[1673402735723,7.43610624,17460.0,17459.0,0.00294983]
[1673402735963,7.43610624,17460.0,17459.0,0.00253087]
[1673402736488,7.36382985,17460.0,17459.0,0.00253087]
[1673402737005,6.78443879,17460.0,17459.0,0.00253087]
[1673402737270,8.50361644,17460.0,17459.0,0.00253087]
[1673402739138,6.86968765,17460.0,17459.0,0.00253087]
[1673402739430,6.86734162,17460.0,17459.0,0.00253087]
[1673402741572,6.78443879,17460.0,17459.0,0.00253087]
[1673402741870,7.36382985,17460.0,17459.0,0.00253087]
[1673402742147,7.43674089,17460.0,17459.0,0.00253087]
[1673402742605,7.36382985,17460.0,17459.0,0.00253087]
[1673402743792,7.43093404,17460.0,17459.0,0.00253087]
[1673402744064,9.0830093,17460.0,17459.0,0.00253087]
[1673402745888,9.66147459,17460.0,17459.0,0.00253087]
[1673402747776,9.0830093,17460.0,17459.0,0.00253087]
[1673402748488,9.66147459,17460.0,17459.0,0.00253087]
[1673402748752,9.66147459,17460.0,17459.0,0.00089447]
[1673402749795,9.66147459,17460.0,17459.0,0.00015998]
[1673402750314,10.25542226,17460.0,17459.0,0.00015998]
[1673402750578,10.00355697,17460.0,17459.0,0.00015998]
[1673402751632,9.42416591,17460.0,17459.0,0.00015998]
[1673402753465,10.00224,17460.0,17459.0,0.00015998]
[1673402757151,9.42416591,17460.0,17459.0,0.00015998]
[1673402757412,10.00239022,17460.0,17459.0,0.00015998]
[1673402757675,10.00239431,17460.0,17459.0,0.00015998]
[1673402757935,10.00355697,17460.0,17459.0,0.00015998]
[1673402758194,10.58178872,17460.0,17459.0,0.00015998]
[1673402759059,10.63977925,17460.0,17459.0,0.00015998]
[1673402759362,10.0615475,17460.0,17459.0,0.00015998]
[1673402759622,10.0615475,17460.0,17459.0,2.596e-05]
[1673402759911,10.06038914,17460.0,17459.0,2.596e-05]
[1673402760175,9.42416591,17460.0,17459.0,2.596e-05]
[1673402760437,9.48215644,17460.0,17459.0,2.596e-05]
[1673402760730,10.0603745,17460.0,17459.0,2.596e-05]
[1673402760987,10.0615475,17460.0,17459.0,2.596e-05]
[1673402761817,9.9265475,17460.0,17459.0,2.596e-05]
[1673402762667,10.0625475,17460.0,17459.0,2.596e-05]
[1673402762929,9.9265475,17460.0,17459.0,2.596e-05]
[1673402763185,10.0625475,17460.0,17459.0,2.596e-05]
[1673402763743,10.00455697,17460.0,17459.0,2.596e-05]
[1673402764001,10.0625475,17460.0,17459.0,2.596e-05]
[1673402765350,0.3,17459.0,17458.0,0.01131411]
[1673402765635,8.25927852,17459.0,17458.0,0.01131411]
[1673402766987,8.39527852,17459.0,17458.0,0.01131411]
[1673402767249,7.97910779,17459.0,17458.0,0.01131411]
[1673402767555,8.80299832,17459.0,17458.0,0.01131411]
[1673402768908,8.80299832,17459.0,17455.0,0.01015316]
[1673402768909,0.9024,17458.0,17455.0,0.01015316]
[1673402769177,0.3259,17456.0,17455.0,0.01015316]
[1673402769443,0.3259,17456.0,17455.0,0.00918788]
[1673402769444,3.56431622,17456.0,17455.0,0.00918788]
[1673402769713,5.56521992,17456.0,17455.0,0.00918788]
[1673402772031,5.62821992,17456.0,17455.0,0.00918788]
[1673402772310,6.20761098,17456.0,17455.0,0.00918788]
[1673402772845,6.23156087,17456.0,17455.0,0.00918788]
[1673402775704,6.23162087,17456.0,17455.0,0.00918788]
[1673402775946,5.65222981,17456.0,17455.0,0.00918788]
[1673402779911,5.10164092,17456.0,17455.0,0.00918788]
[1673402780174,1.64132368,17456.0,17455.0,0.00918788]
[1673402780435,2.06909319,17456.0,17455.0,0.00918788]
[1673402780917,2.42801619,17456.0,17455.0,0.00918788]
[1673402781974,2.42809223,17456.0,17455.0,0.00918788]
[1673402782229,2.18171028,17456.0,17455.0,0.00918788]
[1673402782482,2.84069328,17456.0,17455.0,0.00918788]
[1673402783018,3.72876527,17456.0,17455.0,0.00918788]
[1673402783591,3.81066482,17456.0,17455.0,0.00918788]
[1673402783850,3.18831867,17456.0,17455.0,0.00918788]
[1673402784107,4.88276355,17456.0,17455.0,0.00918788]
[1673402785181,4.93976326,17456.0,17455.0,0.00918788]